fUSD/lending_fUSD_20240827
["ID","MTS","AMOUNT","RATE_DAILY","PERIOD"]
[336355582,1724788232197,-275.0,9.999e-05,2]
[336355583,1724788232207,-500.0,0.0001,3]
[336355585,1724788232217,-1050.0,0.0001,2]
[336355587,1724788232228,-160.0,0.00010026,2]
[336355590,1724788232239,-309.42433542,0.00010026,2]
[336355592,1724788232249,-1709.69970942,0.00010097,2]
[336355594,1724788232259,-1100.0,0.000101,3]
[336355596,1724788232269,-1700.0,0.000102,3]
[336355598,1724788232279,-2300.0,0.000103,3]
[336355600,1724788232289,-3765.25,0.00010388,2]
[336355602,1724788232300,-2900.0,0.000104,3]
[336355604,1724788232310,-389.96,0.00010466,2]
[336355606,1724788232322,-155.0,0.00010471,2]
[336355608,1724788232334,-500.0,0.000105,3]
[336355610,1724788232345,-500.0,0.000106,3]
[336355612,1724788232356,-421.55,0.000107,2]
[336355614,1724788232368,-1581.87,0.000107,2]
[336355616,1724788232378,-500.0,0.000107,3]
[336355618,1724788232388,-708.62,0.00010713,2]
[336355620,1724788232398,-500.0,0.000108,3]
[336355622,1724788232410,-500.0,0.00010805,2]
[336355624,1724788232420,-150.0,0.00010814,2]
[336355626,1724788232431,-500.0,0.00010814,2]
[336355628,1724788232441,-500.0,0.00010823,2]
[336355630,1724788232452,-500.0,0.00010832,2]
[336355632,1724788232462,-500.0,0.00010841,2]
[336355633,1724788232473,-500.0,0.00010849,2]
[336355636,1724788232483,-500.0,0.00010858,2]
[336355638,1724788232494,-500.0,0.00010867,2]
[336355640,1724788232505,-1021.02570053,0.0001089,2]
[336355642,1724788232515,-12133.3689,0.000109,2]
[336355644,1724788232526,-19976.2354,0.000109,2]
[336355646,1724788232537,-207459.24003707,0.000109,2]
[336355648,1724788232556,-341.42630098,0.000109,2]
[336355651,1724788232568,-667.36237526,0.000109,2]
[336355653,1724788232579,-1095.44562553,0.000109,2]
[336355655,1724788232591,-7000.17256487,0.000109,2]
[336355657,1724788232607,-20079.79705259,0.000109,2]
[336355687,1724788238098,-97575.20220488,0.000109,2]
[336355688,1724788238256,-544.37084928,0.000109,2]
[336355689,1724788238268,-256409.44804481,0.000109,2]
[336355690,1724788238279,-170.6347928,0.000109,2]
[336355691,1724788238289,-1051.77846021,0.000109,2]
[336355692,1724788238299,-177.43304188,0.000109,2]
[336355693,1724788238313,-2202.88169,0.000109,2]
[336355694,1724788238325,-1100.0,0.000109,3]
[336355695,1724788238338,-10681.36424116,0.000109,2]
[336355696,1724788238348,-150.0,0.000109,2]
[336355697,1724788238359,-337.4992632,0.000109,2]
[336355698,1724788238371,-322.68125366,0.000109,2]
[336355699,1724788238381,-207.308481,0.000109,2]
[336355700,1724788238392,-500.0,0.00010902,2]
[336355701,1724788238403,-500.0,0.00010911,2]
[336355702,1724788238414,-500.0,0.00010912,2]
[336355704,1724788238426,-4457.0,0.00010914,2]
[336355706,1724788238436,-3705.12,0.00010915,2]
[336355708,1724788238447,-500.0,0.0001092,2]
[336355710,1724788238457,-500.0,0.00010929,2]
[336355712,1724788238468,-500.0,0.00010937,2]
[336355714,1724788238480,-500.0,0.00010946,2]
[336355716,1724788238490,-500.0,0.00010955,2]
[336355719,1724788238501,-200.0,0.00010959,2]
[336355721,1724788238511,-163.02,0.00010959,2]
[336355723,1724788238522,-173.95,0.00010959,2]
[336355725,1724788238533,-155.89,0.00010959,2]
[336355727,1724788238543,-250.0,0.00010959,2]
[336355729,1724788238554,-1500.0,0.00010959,2]
[336355731,1724788238564,-500.0,0.00010964,2]
[336355733,1724788238573,-500.0,0.00010973,2]
[336355735,1724788238582,-500.0,0.00010973,2]
[336355737,1724788238595,-400.0,0.00010973,2]
[336355739,1724788238605,-500.0,0.00010973,2]
[336355741,1724788238614,-400.0,0.00010973,2]
[336355743,1724788238624,-500.0,0.00010981,2]
[336355745,1724788238634,-420.0,0.00010985,2]
[336355747,1724788238644,-150.81,0.0001099,2]
[336355749,1724788238654,-150.81,0.0001099,2]
[336355751,1724788238664,-150.81,0.0001099,2]
[336355753,1724788238674,-150.81,0.0001099,2]
[336355755,1724788238684,-150.81,0.0001099,2]
[336355783,1724788238695,-150.81,0.0001099,2]
[336355788,1724788238974,-150.81,0.0001099,2]
[336355790,1724788238985,-150.81,0.0001099,2]
[336355792,1724788238995,-150.81,0.0001099,2]
[336355794,1724788239005,-150.81,0.0001099,2]
[336355796,1724788239015,-150.81,0.0001099,2]
[336355798,1724788239026,-150.81,0.0001099,2]
[336355800,1724788239036,-150.81,0.0001099,2]
[336355803,1724788239059,-150.81,0.0001099,2]
[336355806,1724788239071,-150.81,0.0001099,2]
[336355808,1724788239081,-150.81,0.0001099,2]
[336355810,1724788239092,-150.81,0.0001099,2]
[336355812,1724788239103,-150.81,0.0001099,2]
[336355814,1724788239113,-150.81,0.0001099,2]
[336355816,1724788239123,-150.81,0.0001099,2]
[336355818,1724788239134,-150.81,0.0001099,2]
[336355820,1724788239145,-500.0,0.0001099,2]
[336355822,1724788239156,-6396.89522355,0.00010997,2]
[336355825,1724788239166,-500.0,0.00010999,2]
[336355827,1724788239176,-500.0,0.00010999,2]
[336355829,1724788239187,-440.13103313,0.00010999,2]
[336355831,1724788239196,-1000.0,0.00010999,2]
[336355833,1724788239207,-695.15864772,0.00010999,2]
[336355835,1724788239217,-1000.0,0.00010999,2]
[336355837,1724788239228,-1000.0,0.00010999,2]
[336355839,1724788239238,-1000.0,0.00010999,2]
[336355841,1724788239249,-1000.0,0.00010999,2]
[336355843,1724788239259,-1000.0,0.00010999,2]
[336355845,1724788239269,-1000.0,0.00010999,2]
[336355847,1724788239279,-1000.0,0.00010999,2]
[336355849,1724788239290,-1000.0,0.00010999,2]
[336355852,1724788239301,-500.0,0.00010999,2]
[336355854,1724788239311,-1000.0,0.00010999,2]
[336355856,1724788239322,-604.89,0.00010999,2]
[336355858,1724788239335,-604.89,0.00010999,2]
[336355860,1724788239345,-604.89,0.00010999,2]
[336355861,1724788239355,-604.89,0.00010999,2]
[336355863,1724788239365,-604.89,0.00010999,2]
[336355865,1724788239377,-191.76645317,0.00010999,2]
[336355868,1724788239391,-413.12354683,0.00010999,2]
[336355870,1724788239403,-604.89,0.00010999,2]
[336355872,1724788239414,-486.18645317,0.00010999,2]
[336355874,1724788239426,-118.70354683,0.00010999,2]
[336355877,1724788239436,-166.19645317,0.00010999,2]
[336355964,1724788240299,-155.0,0.00010097,2]
[336355966,1724788240310,-253.9402245,0.000109,2]
[336355968,1724788240322,-83.8247755,0.00010999,2]
[336356495,1724788245950,-513.96495216,0.00010993,2]
[336356497,1724788245960,-354.86877133,0.00010999,2]
[336356499,1724788245970,-604.89,0.00010999,2]
[336356501,1724788245981,-580.15725951,0.00010999,2]
[336356504,1724788246002,-24.73274049,0.00010999,2]
[336356506,1724788246012,-305.23546751,0.00010999,2]
[336357094,1724788369645,35748.21411799,9.86e-05,2]
[336357095,1724788448030,2245.93,9.9e-05,2]
[336357097,1724788616389,177.41,9.815e-05,2]
[336357098,1724788707135,387.06,8.219e-05,2]
[336357099,1724789106135,-254.0008,9.92e-05,2]
[336357100,1724789126305,250.0,9.908e-05,2]
[336357101,1724789128647,23890.0,9.908e-05,2]
[336357137,1724789432005,-170.38,9.92e-05,2]
[336357139,1724789432016,-105.3992,9.92e-05,2]
[336357141,1724789432027,-333.23842289,9.92e-05,2]
[336357142,1724789432036,-1520.11,9.92e-05,2]
[336357144,1724789432046,-508.25,9.92e-05,2]
[336357146,1724789432055,-1000.0,9.927e-05,2]
[336357148,1724789432065,-357.8,9.927e-05,2]
[336357150,1724789432076,-603.91,9.932e-05,2]
[336357152,1724789432085,-1777.81237711,9.943e-05,2]
[336357153,1724789432162,-435.00242588,9.943e-05,2]
[336357154,1724789432173,-1000.0,9.977e-05,2]
[336357155,1724789432183,-249.54234178,9.999e-05,2]
[336357156,1724789432192,-1150.80193234,0.0001,2]
[336357157,1724789432217,-1374.48806766,0.0001,2]
[336357158,1724789432227,-387.06,0.00010466,2]
[336357159,1724789432236,-299.99,0.00010466,2]
[336357160,1724789432246,-134.19201256,0.000105,2]
[336357165,1724789438128,-1223.47798744,0.000105,2]
[336357166,1724789438139,-526.73366322,0.00010699,2]
[336357167,1724789438151,-579.27404442,0.00010699,2]
[336357168,1724789438161,-687.96190226,0.00010861,2]
[336357169,1724789438171,-27.07905332,0.00010861,2]
[336357170,1724789438183,-660.88284894,0.00010861,2]
[336357171,1724789438194,-500.0,0.00010867,2]
[336357172,1724789438203,-431.33831593,0.00010876,2]
[336357173,1724789438215,-68.66168407,0.00010876,2]
[336357174,1724789438224,-500.0,0.00010885,2]
[336357175,1724789438234,-150.0,0.00010889,2]
[336357176,1724789438246,-756.97831593,0.00010889,2]
[336357177,1724789438258,-1297.50060176,0.00010889,2]
[336357339,1724789440120,-261.88427408,0.00010889,2]
[336357341,1724789440132,-1474.04260823,0.00010889,2]
[336357343,1724789440141,-4290.47624713,0.0001089,2]
[336357345,1724789440151,-500.0,0.00010893,2]
[336357347,1724789440160,-1111.124,0.00010899,2]
[336357349,1724789440170,-3679.087,0.00010899,2]
[336357351,1724789440179,-972.6795,0.00010899,2]
[336357353,1724789440188,-150.0,0.00010899,2]
[336357354,1724789440198,-1181.3792,0.000109,2]
[336357356,1724789440207,-1528.5043,0.000109,2]
[336357358,1724789440216,-390.2131,0.000109,2]
[336357360,1724789440226,-2500.0,0.000109,2]
[336357362,1724789440236,-5720.4196,0.000109,2]
[336357364,1724789440245,-351.45584695,0.000109,2]
[336357366,1724789440254,-150.0,0.000109,2]
[336357368,1724789440264,-192.845748,0.000109,2]
[336357370,1724789440273,-171.44570036,0.000109,2]
[336357372,1724789440282,-189.55387216,0.000109,2]
[336357373,1724789440291,-704.95211394,0.000109,2]
[336357375,1724789440301,-577.1359701,0.000109,2]
[336357377,1724789440310,-1017.82675283,0.000109,2]
[336357379,1724789440320,-17123.67877402,0.000109,2]
[336357381,1724789440331,-500.0,0.00010902,2]
[336357383,1724789440342,-500.0,0.00010911,2]
[336357385,1724789440352,-500.0,0.00010912,2]
[336357387,1724789440363,-500.0,0.0001092,2]
[336357389,1724789440373,-500.0,0.00010929,2]
[336357391,1724789440384,-500.0,0.00010937,2]
[336357393,1724789440395,-500.0,0.00010946,2]
[336357395,1724789440405,-500.0,0.00010955,2]
[336357397,1724789440415,-200.0,0.00010959,2]
[336357399,1724789440425,-169.48,0.00010959,2]
[336357401,1724789440436,-163.02,0.00010959,2]
[336357403,1724789440448,-250.0,0.00010959,2]
[336357405,1724789440458,-1500.0,0.00010959,2]
[336357407,1724789440467,-2000.0,0.00010959,2]
[336357409,1724789440476,-500.0,0.00010964,2]
[336357411,1724789440486,-500.0,0.00010973,2]
[336357413,1724789440495,-500.0,0.00010973,2]
[336357415,1724789440505,-500.0,0.00010973,2]
[336357417,1724789440515,-200.0,0.00010973,2]
[336357418,1724789440524,-324.722,0.00010981,2]
[336357420,1724789440534,-500.0,0.00010981,2]
[336357422,1724789440543,-155.0,0.00010989,2]
[336357424,1724789440553,-150.84,0.0001099,2]
[336357426,1724789440563,-954.0,0.0001099,2]
[336357428,1724789440572,-1000.0,0.0001099,2]
[336357430,1724789440582,-1000.0,0.0001099,2]
[336357432,1724789440591,-1000.0,0.0001099,2]
[336357434,1724789440601,-1000.0,0.0001099,3]
[336357436,1724789440611,-1000.0,0.0001099,3]
[336357437,1724789440620,-1019.0,0.0001099,2]
[336357439,1724789440630,-1000.0,0.0001099,2]
[336357441,1724789440639,-649.0,0.0001099,2]
[336357443,1724789440649,-150.84,0.0001099,2]
[336357445,1724789440659,-500.0,0.0001099,2]
[336357447,1724789440669,-756.11201824,0.00010993,2]
[336357449,1724789440678,-5510.39732754,0.00010997,2]
[336357451,1724789440691,-44083.17862032,0.00010997,2]
[336357454,1724789440701,-500.0,0.00010999,2]
[336357456,1724789440711,-500.0,0.00010999,2]
[336357458,1724789440720,-199.30226172,0.00010999,2]
[336357460,1724789440729,-500.0,0.00010999,2]
[336357462,1724789440739,-432.39737912,0.00010999,2]
[336357464,1724789440749,-500.0,0.00010999,2]
[336357466,1724789440758,-500.0,0.00010999,2]
[336357468,1724789440768,-1000.0,0.00010999,2]
[336357470,1724789440778,-1000.0,0.00010999,2]
[336357472,1724789440787,-379.63096155,0.00010999,2]
[336357474,1724789440797,-1000.0,0.00010999,2]
[336357476,1724789440807,-1000.0,0.00010999,2]
[336357478,1724789440816,-695.15864772,0.00010999,2]
[336357480,1724789440826,-1000.0,0.00010999,2]
[336357482,1724789440836,-1000.0,0.00010999,2]
[336357484,1724789440846,-1000.0,0.00010999,2]
[336357486,1724789440855,-1051.77846021,0.00010999,2]
[336357488,1724789440869,-1000.0,0.00010999,2]
[336357490,1724789440885,-1000.0,0.00010999,2]
[336357492,1724789440895,-500.0,0.00010999,2]
[336357494,1724789440904,-500.0,0.00010999,2]
[336357496,1724789440913,-500.0,0.00010999,2]
[336357498,1724789440923,-500.0,0.00010999,2]
[336357500,1724789440935,-500.0,0.00010999,2]
[336357502,1724789440944,-500.0,0.00010999,2]
[336357504,1724789440954,-500.0,0.00010999,2]
[336357506,1724789440964,-500.0,0.00010999,2]
[336357508,1724789440973,-500.0,0.00010999,2]
[336357510,1724789440983,-500.0,0.00010999,2]
[336357512,1724789440992,-500.0,0.00010999,2]
[336357514,1724789441002,-500.0,0.00010999,2]
[336357516,1724789441011,-500.0,0.00010999,2]
[336357518,1724789441020,-500.0,0.00010999,2]
[336357520,1724789441030,-558.41453249,0.00010999,2]
[336357522,1724789441040,-500.0,0.00010999,2]
[336357524,1724789441049,-500.0,0.00010999,2]
[336357525,1724789441059,-500.0,0.00010999,2]
[336357527,1724789441067,-215.14,0.00010999,2]
[336357529,1724789441077,-500.0,0.00010999,2]
[336357531,1724789441087,-500.0,0.00010999,2]
[336357533,1724789441097,-500.0,0.00010999,2]
[336357536,1724789441108,-517.26,0.00010999,2]
[336357537,1724789441119,-500.0,0.00010999,2]
[336357539,1724789441129,-500.0,0.00010999,2]
[336357542,1724789441141,-500.0,0.00010999,2]
[336357544,1724789441151,-500.0,0.00010999,2]
[336357546,1724789441161,-500.0,0.00010999,2]
[336357548,1724789441170,-500.0,0.00010999,2]
[336357550,1724789441180,-500.0,0.00010999,2]
[336357552,1724789441189,-500.0,0.00010999,2]
[336357554,1724789441200,-500.0,0.00010999,2]
[336357556,1724789441210,-500.0,0.00010999,2]
[336357558,1724789441219,-500.0,0.00010999,2]
[336357560,1724789441230,-500.0,0.00010999,2]
[336357562,1724789441240,-500.0,0.00010999,2]
[336357564,1724789441250,-500.0,0.00010999,2]
[336357566,1724789441259,-500.0,0.00010999,2]
[336357568,1724789441268,-500.0,0.00010999,2]
[336357570,1724789441278,-500.0,0.00010999,2]
[336357572,1724789441289,-500.0,0.00010999,2]
[336357574,1724789441298,-500.0,0.00010999,2]
[336357576,1724789441307,-500.0,0.00010999,2]
[336357578,1724789441317,-500.0,0.00010999,2]
[336357580,1724789441327,-500.0,0.00010999,2]
[336357582,1724789441336,-344.45063457,0.00010999,2]
[336357584,1724789441345,-500.0,0.00010999,2]
[336357586,1724789441354,-500.0,0.00010999,2]
[336357588,1724789441364,-500.0,0.00010999,2]
[336357590,1724789441373,-500.0,0.00010999,2]
[336357592,1724789441383,-500.0,0.00010999,2]
[336357594,1724789441392,-500.0,0.00010999,2]
[336357596,1724789441401,-473.76783609,0.00010999,2]
[336357598,1724789441410,-521.39,0.00010999,2]
[336357600,1724789441420,-500.0,0.00010999,2]
[336357602,1724789441429,-500.0,0.00010999,2]
[336357604,1724789441438,-500.0,0.00010999,2]
[336357606,1724789441448,-500.0,0.00010999,2]
[336357608,1724789441457,-500.0,0.00010999,2]
[336357610,1724789441467,-500.0,0.00010999,2]
[336357612,1724789441476,-500.0,0.00010999,2]
[336357614,1724789441486,-608.8,0.00010999,2]
[336357616,1724789441495,-527.19740296,0.00010999,2]
[336357618,1724789441505,-500.0,0.00010999,2]
[336357620,1724789441514,-220593.75714035,0.00011,2]
[336357622,1724789441528,-15941.87016729,0.00011,2]
[336357624,1724789441539,-3895.58825898,0.00011,2]
[336357633,1724789441611,-0.08504752,0.00011,2]
[336357635,1724789441623,-398.03033284,0.00011,2]
[336357637,1724789441635,-26641.17337603,0.00011,2]
[336357639,1724789441646,-682.60523184,0.00011,2]
[336357641,1724789441658,-2988.78326536,0.00011,2]
[336357644,1724789441670,-7583.60000003,0.00011,2]
[336357646,1724789441682,-24912.89410395,0.00011,2]
[336357648,1724789441699,-3079.4616,0.00011,2]
[336357650,1724789441711,-411787.09384718,0.00011,2]
[336357652,1724789441720,-187199.84554278,0.00011,2]
[336357654,1724789441732,-1486.46443087,0.00011,2]
[336357657,1724789441744,-711.3485025,0.00011,2]
[336357659,1724789441755,-1127.92651515,0.00011,2]
[336357661,1724789441767,-14773.2789243,0.00011,2]
[336357663,1724789441779,-356.19588052,0.00011,2]
[336357665,1724789441791,-536.06005525,0.00011,2]
[336357772,1724789443071,-150.0,0.00010959,2]
[336357774,1724789443081,-257.29910509,0.00011,2]
[336357779,1724789443123,-367.9007783,0.00011,2]
[336357781,1724789443135,-3172.2818176,0.00011,2]
[336357783,1724789443146,-1668.02297108,0.00011,2]
[336357785,1724789443158,-708.29297035,0.00011,2]
[336357787,1724789443170,-530.05992504,0.00011,2]
[336357789,1724789443182,-242992.47263957,0.00011,2]
[336357791,1724789443194,-11867.08119869,0.00011,2]
[336357794,1724789443206,-1267.53629767,0.00011,2]
[336357796,1724789443217,-9012.60170715,0.00011,2]
[336357798,1724789443228,-5958.007393,0.00011,2]
[336357800,1724789443240,-8950.60579164,0.00011,2]
[336357802,1724789443252,-2558.2578458,0.00011,2]
[336357805,1724789443264,-773.9542217,0.00011,2]
[336357808,1724789443286,-579.35,0.00011,2]
[336357810,1724789443298,-571.48088153,0.00011,2]
[336357812,1724789443309,-35596.65073552,0.00011,2]
[336357814,1724789443321,-483.01750003,0.00011,2]
[336357816,1724789443333,-1067.81353758,0.00011,2]
[336357819,1724789443345,-455.24917089,0.00011,2]
[336357821,1724789443357,-2467.1499995,0.00011,2]
[336357823,1724789443369,-373.5132,0.00011,2]
[336357825,1724789443380,-2179.86755184,0.00011,2]
[336357827,1724789443391,-8739.00278943,0.00011,2]
[336357829,1724789443403,-12754.46134342,0.00011,2]
[336357832,1724789443415,-489.18296135,0.00011,2]
[336357834,1724789443427,-362.76485203,0.00011,2]
[336358080,1724789446026,-500.0,0.00010973,2]
[336358082,1724789446036,-414.18041574,0.00011,2]
[336358084,1724789446049,-341.13686896,0.00011,2]
[336358087,1724789446062,-360.08234564,0.00011,2]
[336358089,1724789446073,-904.64662748,0.00011,2]
[336358091,1724789446085,-1280.81103182,0.00011,2]
[336358093,1724789446098,-15553.24533523,0.00011,2]
[336358095,1724789446110,-887.99361597,0.00011,2]
[336358097,1724789446123,-316.89972846,0.00011,2]
[336358099,1724789446135,-1078.57073008,0.00011,2]
[336358101,1724789446147,-17614.77864084,0.00011,2]
[336358104,1724789446159,-264.75669931,0.00011,2]
[336358106,1724789446170,-3169.752,0.00011,2]
[336358108,1724789446183,-4994.61127258,0.00011,2]
[336358110,1724789446194,-2800.21661438,0.00011,2]
[336358112,1724789446207,-1189.02918722,0.00011,2]
[336358114,1724789446219,-1486.66666005,0.00011,2]
[336358116,1724789446231,-555.0,0.00011,2]
[336358119,1724789446248,-598.14476084,0.00011,2]
[336358121,1724789446260,-1325.98466,0.00011,2]
[336358123,1724789446272,-2733.38035353,0.00011,2]
[336358125,1724789446283,-516211.57659398,0.00011,2]
[336358127,1724789446296,-300.025825,0.00011,2]
[336358129,1724789446308,-7968.77538251,0.00011,2]
[336358132,1724789446321,-581.02513369,0.00011,2]
[336358134,1724789446334,-508.5,0.00011,2]
[336358136,1724789446350,-1246.58900404,0.00011,2]
[336358138,1724789446361,-7323.23000964,0.00011,2]
[336359133,1724789570036,839.2412,9.82e-05,2]
[336359134,1724789571256,385.72,8.239e-05,2]
[336359135,1724789690491,-300.18,0.0001788,120]
[336359136,1724789690517,-150.5,0.0001789,120]
[336359137,1724789690542,-2000.0,0.000185,61]
[336359138,1724789690567,-2000.0,0.000185,61]
[336359139,1724789690591,-2000.0,0.000185,62]
[336359140,1724789697083,-150.0,0.00024,120]
[336359141,1724789697114,-2000.0,0.00024657,120]
[336359142,1724789697138,-2000.0,0.00024657,120]
[336359143,1724789697164,-2000.0,0.00024657,120]
[336359144,1724789697190,-2000.0,0.00024657,120]
[336359145,1724789697215,-2000.0,0.00024657,120]
[336359146,1724789697242,-2000.0,0.00024657,120]
[336359147,1724789697270,-1336.90212343,0.00024657,120]
[336359148,1724789697299,-500.0,0.00024932,120]
[336359149,1724789697329,-664.406,0.00025,120]
[336359150,1724789697354,-750.39,0.00025,120]
[336359151,1724789862709,11991.982979,9.86e-05,2]
[336359152,1724790067744,500.0,0.00025,120]
[336359153,1724790067788,500.0,0.00025,120]
[336359154,1724790068232,500.0,0.00025,120]
[336359155,1724790068703,500.0,0.00025,120]
[336359156,1724790069164,500.0,0.00025,120]
[336359157,1724790069620,500.0,0.00025,120]
[336359158,1724790070063,500.0,0.00025,120]
[336359159,1724790070534,500.0,0.00025,120]
[336359160,1724790070988,500.0,0.00025,120]
[336359161,1724790071461,500.0,0.00025,120]
[336359162,1724790071913,500.0,0.00025,120]
[336359163,1724790072346,500.0,0.00025,120]
[336359164,1724790072796,500.0,0.00025,120]
[336359165,1724790073250,445.62753846,0.00025,120]
[336359166,1724790091392,385.03,8.219e-05,2]
[336359167,1724790196724,515.265016,0.00025,120]
[336359168,1724790203648,298.969514,0.00025,120]
[336359169,1724790210112,500.0,0.00024932,120]
[336359189,1724790530300,33669.44629413,9.86e-05,2]
[336359216,1724790587970,760.9392262,9.86e-05,2]
[336359222,1724790596187,23890.0,9.739e-05,2]
[336359228,1724790632235,-1000.0,9.918e-05,2]
[336359229,1724790632246,-1268.44968028,9.924e-05,2]
[336359230,1724790632256,-177.41,9.924e-05,2]
[336359231,1724790632266,-178.9,9.935e-05,2]
[336359232,1724790632277,-337.835,9.999e-05,2]
[336359233,1724790632287,-1473.13336677,0.0001,2]
[336359234,1724790632297,-920.81569175,0.0001,2]
[336359235,1724790632307,-192.73,0.0001009,2]
[336359236,1724790632317,-300.0,0.00010096,2]
[336359237,1724790632327,-909.46121436,0.00010097,2]
[336359238,1724790632337,-5550.0,0.000101,2]
[336359239,1724790632347,-1766.8108,0.00010299,2]
[336359240,1724790632356,-150.0,0.00010398,2]
[336359241,1724790632366,-1736.10321622,0.00010399,2]
[336359242,1724790632378,-16079.02632499,0.00010399,2]
[336359243,1724790632390,-377.86782155,0.00010399,2]
[336359244,1724790632401,-351.17689773,0.00010399,2]
[336359245,1724790632413,-3347.07412977,0.00010399,2]
[336359246,1724790632425,-1446.28093608,0.00010399,2]
[336359247,1724790632437,-1753.23449409,0.00010399,2]
[336359248,1724790632456,-484.55762474,0.00010399,2]
[336359249,1724790632471,-482.99531256,0.00010399,2]
[336359250,1724790632527,-916.50168511,0.00010399,2]
[336359251,1724790632539,-25479.1872753,0.00010399,2]
[336359252,1724790632585,-1042.5,0.00010399,2]
[336359257,1724790638266,-339.1733676,0.00010399,2]
[336359258,1724790638278,-758.11221771,0.00010399,2]
[336359259,1724790638291,-705.3146958,0.00010399,2]
[336359260,1724790638303,-9005.59263688,0.00010399,2]
[336359261,1724790638386,-322.06188124,0.00010399,2]
[336359262,1724790638504,-280.67567076,0.00010399,2]
[336359263,1724790638516,-12851.8,0.00010399,2]
[336359264,1724790638528,-1710.00000005,0.00010399,2]
[336359265,1724790638562,-1194.57432484,0.00010399,2]
[336359266,1724790638575,-8269.0,0.00010399,2]
[336359267,1724790638587,-1351.70136552,0.00010399,2]
[336359268,1724790638601,-28686.90924801,0.00010399,2]
[336359269,1724790638623,-1044.71571817,0.00010399,2]
[336359270,1724790638637,-1200.0,0.00010399,2]
[336359271,1724790638650,-8173.52989368,0.00010399,2]
[336359455,1724790640372,-3935.054666,0.00010399,2]
[336359475,1724790640562,-310.984253,0.00010399,2]
[336359745,1724790643335,-1057.70437536,0.00010399,2]
[336359748,1724790643348,-4908.26999999,0.00010399,2]
[336360019,1724790646236,-685.40080271,0.00010097,2]
[336360020,1724790646246,-3017.71735511,0.00010399,2]
[336360025,1724790646295,-7665.00101707,0.00010399,2]
[336360026,1724790646305,-150.99,0.00010399,2]
[336360028,1724790646315,-432.79780732,0.00010471,2]
[336360030,1724790646324,-186.03740953,0.00010471,2]
[336360031,1724790646335,-253.82565445,0.00010471,2]
[336360033,1724790646348,-426.91,0.000105,2]
[336360035,1724790646358,-87.96242086,0.000105,2]
[336360039,1724790646410,-62.62757914,0.000105,2]
[336360041,1724790646423,-531.62,0.000105,2]
[336360043,1724790646435,-1319.51,0.000105,2]
[336360045,1724790646446,-150.0,0.000105,2]
[336360046,1724790646457,-330.4044326,0.00010505,2]
[336360048,1724790646466,-456.35167311,0.00010505,2]
[336360050,1724790646476,-466.77824516,0.00010566,2]
[336360051,1724790646487,-309.34344666,0.00010699,2]
[336360053,1724790646497,-500.0,0.0001077,2]
[336360055,1724790646508,-500.0,0.00010779,2]
[336360057,1724790646518,-337.25516234,0.00010785,2]
[336360059,1724790646529,-500.0,0.00010788,2]
[336360060,1724790646538,-500.0,0.00010797,2]
[336360062,1724790646548,-11123.71645296,0.00010798,2]
[336360064,1724790646560,-22455.3772894,0.00010798,2]
[336360065,1724790646571,-327.97891729,0.00010798,2]
[336360067,1724790646583,-940.87063428,0.00010798,2]
[336361216,1724790659594,402.83,8.219e-05,2]
[336361583,1724790668946,500.0,0.00025,120]
[336361585,1724790737573,178.9,9.904e-05,2]